[Event "Early-Titled-Tuesday-Blitz-October-03-2023"]
[Site "Chess.com"]
[Date "2023.10.03"]
[Round "10"]
[White "AEMEffi"]
[Black "brm72"]
[Result "0-1"]
[WhiteElo "2386"]
[BlackElo "2508"]
[TimeControl "180+1"]
[EndTime "9:57:00 PDT"]
[Termination "brm72 won by resignation"]

1. d4 {[%clk 0:02:59.8]} 1... Nf6 {[%clk 0:02:57.3]} 2. c4 {[%clk 0:03:00.3]}
2... e6 {[%clk 0:02:57.3]} 3. g3 {[%clk 0:03:00.5]} 3... d5 {[%clk 0:02:57.1]}
4. Nf3 {[%clk 0:03:00.6]} 4... Be7 {[%clk 0:02:57.6]} 5. Bg2 {[%clk 0:03:01.1]}
5... O-O {[%clk 0:02:58.2]} 6. O-O {[%clk 0:03:01.8]} 6... dxc4 {[%clk
0:02:58.9]} 7. Qc2 {[%clk 0:03:01.9]} 7... b5 {[%clk 0:02:59.2]} 8. a4 {[%clk
0:02:54.3]} 8... Bb7 {[%clk 0:02:56.9]} 9. axb5 {[%clk 0:02:53.1]} 9... a6
{[%clk 0:02:57.3]} 10. bxa6 {[%clk 0:02:45.1]} 10... Nxa6 {[%clk 0:02:58.2]} 11.
Na3 {[%clk 0:02:12.5]} 11... Nb4 {[%clk 0:02:53.2]} 12. Qxc4 {[%clk 0:02:06.6]}
12... Bd5 {[%clk 0:02:51.7]} 13. Qc3 {[%clk 0:02:05.5]} 13... Ne4 {[%clk
0:02:50.5]} 14. Qe1 {[%clk 0:02:04.6]} 14... c5 {[%clk 0:02:08.1]} 15. Bd2
{[%clk 0:01:39]} 15... Rxa3 {[%clk 0:01:44.7]} 16. Rxa3 {[%clk 0:01:20.6]} 16...
Nc2 {[%clk 0:01:44.6]} 17. Qc1 {[%clk 0:01:11.8]} 17... Nxa3 {[%clk 0:01:37.4]}
18. bxa3 {[%clk 0:01:12.7]} 18... cxd4 {[%clk 0:01:32]} 19. Nxd4 {[%clk
0:01:05.7]} 19... Nxd2 {[%clk 0:01:31.9]} 20. Qxd2 {[%clk 0:01:04.9]} 20... Bxa3
{[%clk 0:01:30.8]} 21. Bxd5 {[%clk 0:00:52.3]} 21... Qxd5 {[%clk 0:01:31.7]} 22.
Nf3 {[%clk 0:00:52.3]} 22... Qf5 {[%clk 0:01:21.1]} 23. Kg2 {[%clk 0:00:48.8]}
23... h6 {[%clk 0:01:19.8]} 24. Rd1 {[%clk 0:00:45.5]} 24... Be7 {[%clk
0:01:11.5]} 25. Qd3 {[%clk 0:00:42.6]} 25... Qf6 {[%clk 0:01:08.4]} 26. e4
{[%clk 0:00:39.8]} 26... Rd8 {[%clk 0:01:03.9]} 27. Qe2 {[%clk 0:00:38.5]} 27...
Rxd1 {[%clk 0:01:02.2]} 28. Qxd1 {[%clk 0:00:39.4]} 28... Bc5 {[%clk 0:00:54.7]}
29. h4 {[%clk 0:00:31.5]} 29... g5 {[%clk 0:00:52.2]} 30. hxg5 {[%clk
0:00:31.1]} 30... hxg5 {[%clk 0:00:53.1]} 31. Qc1 {[%clk 0:00:30.6]} 31... g4
{[%clk 0:00:49.4]} 32. Qg5+ {[%clk 0:00:19.2]} 32... Qxg5 {[%clk 0:00:46.2]} 33.
Nxg5 {[%clk 0:00:20.1]} 33... Kg7 {[%clk 0:00:45.7]} 34. f4 {[%clk 0:00:14.2]}
34... Be7 {[%clk 0:00:42]} 35. Kf2 {[%clk 0:00:07.3]} 35... Bxg5 {[%clk
0:00:40.5]} 36. fxg5 {[%clk 0:00:08.2]} 36... Kg6 {[%clk 0:00:40.9]} 37. Ke3
{[%clk 0:00:09.1]} 37... Kxg5 {[%clk 0:00:41.2]} 38. Kd4 {[%clk 0:00:08.9]}
38... Kf6 {[%clk 0:00:36.3]} 39. Kd3 {[%clk 0:00:08.6]} 39... Ke5 {[%clk
0:00:36.6]} 40. Ke3 {[%clk 0:00:09.2]} 40... f5 {[%clk 0:00:32]} 41. exf5 {[%clk
0:00:10.1]} 41... exf5 {[%clk 0:00:32.8]} 42. Kf2 {[%clk 0:00:08.4]} 42... Kd4
{[%clk 0:00:30.8]} 43. Ke2 {[%clk 0:00:07.5]} 43... Ke4 {[%clk 0:00:31.2]} 44.
Kf2 {[%clk 0:00:06.2]} 44... Kd3 {[%clk 0:00:31.6]} 45. Kf1 {[%clk 0:00:06]}
45... Ke3 {[%clk 0:00:31.6]} 46. Kg2 {[%clk 0:00:06.2]} 46... Ke2 {[%clk
0:00:32.1]} 47. Kg1 {[%clk 0:00:06.5]} 47... Kf3 {[%clk 0:00:32.5]} 48. Kh2
{[%clk 0:00:07.4]} 48... Kf2 {[%clk 0:00:32.2]} 0-1

[Event "Early-Titled-Tuesday-Blitz-October-03-2023"]
[Site "Chess.com"]
[Date "2023.10.03"]
[Round "10"]
[White "Roman_Ovetchkin"]
[Black "VovenRogel"]
[Result "0-1"]
[WhiteElo "2703"]
[BlackElo "2862"]
[TimeControl "180+1"]
[EndTime "9:57:01 PDT"]
[Termination "VovenRogel won on time"]

1. d4 {[%clk 0:03:00.9]} 1... d5 {[%clk 0:02:59.6]} 2. c4 {[%clk 0:03:00.8]}
2... e6 {[%clk 0:03:00.2]} 3. Nf3 {[%clk 0:03:00.1]} 3... a6 {[%clk 0:02:59.5]}
4. g3 {[%clk 0:03:00]} 4... dxc4 {[%clk 0:02:57.9]} 5. Bg2 {[%clk 0:03:00.7]}
5... Nf6 {[%clk 0:02:56.7]} 6. O-O {[%clk 0:03:00.5]} 6... Nc6 {[%clk
0:02:56.8]} 7. Bg5 {[%clk 0:02:47.1]} 7... Be7 {[%clk 0:02:55.3]} 8. e3 {[%clk
0:02:47]} 8... O-O {[%clk 0:02:44.9]} 9. Qc1 {[%clk 0:02:36.3]} 9... Na5 {[%clk
0:02:29.6]} 10. Ne5 {[%clk 0:02:23.7]} 10... c5 {[%clk 0:02:28.5]} 11. dxc5
{[%clk 0:02:20.5]} 11... Qc7 {[%clk 0:02:10.5]} 12. Nxc4 {[%clk 0:02:08.5]}
12... Qxc5 {[%clk 0:02:10.5]} 13. Nxa5 {[%clk 0:02:08.6]} 13... Qxa5 {[%clk
0:02:10.6]} 14. h4 {[%clk 0:01:30.9]} 14... h6 {[%clk 0:02:08.6]} 15. Bxf6
{[%clk 0:01:30.3]} 15... Bxf6 {[%clk 0:02:08.7]} 16. Nd2 {[%clk 0:01:30.8]}
16... Bd7 {[%clk 0:02:03.8]} 17. Ne4 {[%clk 0:01:26.6]} 17... Be7 {[%clk
0:01:58.5]} 18. Qc3 {[%clk 0:01:22.9]} 18... Bb4 {[%clk 0:01:52.4]} 19. Qd4
{[%clk 0:01:12.8]} 19... Bc6 {[%clk 0:01:52.9]} 20. a3 {[%clk 0:01:07.3]} 20...
Be7 {[%clk 0:01:52.2]} 21. Qc3 {[%clk 0:01:04.4]} 21... Qb6 {[%clk 0:01:50.1]}
22. Rab1 {[%clk 0:00:37.7]} 22... Rac8 {[%clk 0:01:48.5]} 23. Qe5 {[%clk
0:00:34.5]} 23... Rfd8 {[%clk 0:01:40.8]} 24. Rfc1 {[%clk 0:00:16.9]} 24... Rd5
{[%clk 0:01:34.9]} 25. Qf4 {[%clk 0:00:15.7]} 25... Rf5 {[%clk 0:01:32.5]} 26.
Qg4 {[%clk 0:00:12.7]} 26... Rd8 {[%clk 0:01:30.8]} 27. Qe2 {[%clk 0:00:06.3]}
27... Rfd5 {[%clk 0:01:21.1]} 28. Rd1 {[%clk 0:00:04.5]} 28... Rxd1+ {[%clk
0:01:19.8]} 29. Rxd1 {[%clk 0:00:04.6]} 29... Rxd1+ {[%clk 0:01:20.5]} 30. Qxd1
{[%clk 0:00:05.3]} 30... Qxb2 {[%clk 0:01:21]} 31. a4 {[%clk 0:00:05.8]} 31...
Qb4 {[%clk 0:01:18.9]} 32. Nd2 {[%clk 0:00:05.3]} 32... Bxa4 {[%clk 0:01:16.8]}
33. Qc1 {[%clk 0:00:05.6]} 33... Bd7 {[%clk 0:00:56.9]} 34. Ne4 {[%clk
0:00:04.3]} 34... Bc6 {[%clk 0:00:56.4]} 35. Nd2 {[%clk 0:00:03.8]} 35... Bxg2
{[%clk 0:00:55.9]} 36. Kxg2 {[%clk 0:00:04.7]} 36... Qc5 {[%clk 0:00:56.1]} 37.
Qb1 {[%clk 0:00:04]} 37... Qd5+ {[%clk 0:00:56.5]} 38. Nf3 {[%clk 0:00:04.5]}
38... b5 {[%clk 0:00:55.6]} 39. e4 {[%clk 0:00:05.1]} 39... Qc5 {[%clk
0:00:54.3]} 40. Qd3 {[%clk 0:00:04.2]} 40... a5 {[%clk 0:00:50.8]} 41. Qd7
{[%clk 0:00:04.2]} 41... a4 {[%clk 0:00:51.3]} 42. Qe8+ {[%clk 0:00:04.3]} 42...
Bf8 {[%clk 0:00:51.2]} 43. h5 {[%clk 0:00:03.1]} 43... a3 {[%clk 0:00:50.9]} 44.
Qa8 {[%clk 0:00:03.4]} 44... b4 {[%clk 0:00:50.1]} 45. Nd2 {[%clk 0:00:03.7]}
45... Qc2 {[%clk 0:00:45.4]} 46. Nf3 {[%clk 0:00:03.3]} 46... a2 {[%clk
0:00:40.6]} 47. Ne5 {[%clk 0:00:03.6]} 47... Qc7 {[%clk 0:00:35.3]} 48. f4
{[%clk 0:00:02.9]} 48... b3 {[%clk 0:00:35.6]} 0-1

[Event "Early-Titled-Tuesday-Blitz-October-03-2023"]
[Site "Chess.com"]
[Date "2023.10.03"]
[Round "10"]
[White "JosefineHeinemann"]
[Black "N4700000"]
[Result "1-0"]
[WhiteElo "2517"]
[BlackElo "2398"]
[TimeControl "180+1"]
[EndTime "9:57:03 PDT"]
[Termination "JosefineHeinemann won by checkmate"]

1. e4 {[%clk 0:03:00.9]} 1... c6 {[%clk 0:02:58.1]} 2. d4 {[%clk 0:02:56.9]}
2... d5 {[%clk 0:02:57.9]} 3. e5 {[%clk 0:02:54.7]} 3... Bf5 {[%clk 0:02:57]} 4.
Nf3 {[%clk 0:02:54.1]} 4... e6 {[%clk 0:02:56.6]} 5. Be2 {[%clk 0:02:54.2]} 5...
Nd7 {[%clk 0:02:53.2]} 6. O-O {[%clk 0:02:53.5]} 6... h6 {[%clk 0:02:52.3]} 7.
Nbd2 {[%clk 0:02:49.6]} 7... Ne7 {[%clk 0:02:48.3]} 8. a4 {[%clk 0:02:48.3]}
8... a6 {[%clk 0:02:32.9]} 9. b4 {[%clk 0:02:45.9]} 9... Ng6 {[%clk 0:02:12.8]}
10. c3 {[%clk 0:02:38.7]} 10... a5 {[%clk 0:02:09.4]} 11. bxa5 {[%clk
0:02:31.1]} 11... Qxa5 {[%clk 0:02:05.4]} 12. Nb3 {[%clk 0:02:30.9]} 12... Qc7
{[%clk 0:01:52.8]} 13. c4 {[%clk 0:02:19.3]} 13... dxc4 {[%clk 0:01:45.3]} 14.
Bxc4 {[%clk 0:02:18.9]} 14... Nb6 {[%clk 0:01:41.5]} 15. Bd3 {[%clk 0:02:19.1]}
15... Bxd3 {[%clk 0:01:39.1]} 16. Qxd3 {[%clk 0:02:20]} 16... Be7 {[%clk
0:01:38.7]} 17. a5 {[%clk 0:02:18.3]} 17... Nd5 {[%clk 0:01:37.8]} 18. Bd2
{[%clk 0:02:17.2]} 18... O-O {[%clk 0:01:35.3]} 19. g3 {[%clk 0:02:14.4]} 19...
Rfd8 {[%clk 0:01:26.8]} 20. Rfd1 {[%clk 0:02:05.7]} 20... Bb4 {[%clk 0:01:23.7]}
21. Bxb4 {[%clk 0:02:04.3]} 21... Nxb4 {[%clk 0:01:23.4]} 22. Qc4 {[%clk
0:02:04.6]} 22... Nd5 {[%clk 0:01:13.2]} 23. Nfd2 {[%clk 0:02:02.8]} 23... Nge7
{[%clk 0:01:02.4]} 24. Ne4 {[%clk 0:01:57.1]} 24... Nf5 {[%clk 0:01:02.3]} 25.
Rdb1 {[%clk 0:01:40.5]} 25... Ra7 {[%clk 0:00:50.8]} 26. Nbc5 {[%clk 0:01:38.8]}
26... Rda8 {[%clk 0:00:42.8]} 27. Nb3 {[%clk 0:01:22.8]} 27... Qe7 {[%clk
0:00:37.9]} 28. h4 {[%clk 0:01:17.8]} 28... Qb4 {[%clk 0:00:29.9]} 29. Qxb4
{[%clk 0:01:13.5]} 29... Nxb4 {[%clk 0:00:30.8]} 30. Rd1 {[%clk 0:01:08.8]}
30... Rd8 {[%clk 0:00:20]} 31. Rac1 {[%clk 0:01:05.4]} 31... Rd5 {[%clk
0:00:19.4]} 32. Rc5 {[%clk 0:00:59.3]} 32... Rxc5 {[%clk 0:00:18.2]} 33. Nexc5
{[%clk 0:00:59.5]} 33... Ne7 {[%clk 0:00:16.8]} 34. Kg2 {[%clk 0:00:56.3]} 34...
Ned5 {[%clk 0:00:16.9]} 35. h5 {[%clk 0:00:56.9]} 35... Kf8 {[%clk 0:00:16.7]}
36. g4 {[%clk 0:00:56.8]} 36... Ke7 {[%clk 0:00:16.9]} 37. Kg3 {[%clk
0:00:57.3]} 37... Nc3 {[%clk 0:00:16.7]} 38. Re1 {[%clk 0:00:54.2]} 38... Nb5
{[%clk 0:00:16.2]} 39. f4 {[%clk 0:00:50.4]} 39... Nc2 {[%clk 0:00:16.2]} 40.
Rd1 {[%clk 0:00:48.1]} 40... Ne3 {[%clk 0:00:15.4]} 41. Rd3 {[%clk 0:00:46.3]}
41... Nc4 {[%clk 0:00:15.2]} 42. f5 {[%clk 0:00:40.3]} 42... Nxa5 {[%clk
0:00:15]} 43. Nxa5 {[%clk 0:00:40.6]} 43... Rxa5 {[%clk 0:00:15.9]} 44. Nxb7
{[%clk 0:00:41.2]} 44... Ra4 {[%clk 0:00:15.1]} 45. f6+ {[%clk 0:00:22.4]} 45...
gxf6 {[%clk 0:00:14.6]} 46. exf6+ {[%clk 0:00:23.3]} 46... Kxf6 {[%clk 0:00:14]}
47. Nd8 {[%clk 0:00:23.6]} 47... Rxd4 {[%clk 0:00:11.6]} 48. Rf3+ {[%clk
0:00:22.5]} 48... Kg5 {[%clk 0:00:10.3]} 49. Nxf7# {[%clk 0:00:22.8]} 1-0

[Event "Early-Titled-Tuesday-Blitz-October-03-2023"]
[Site "Chess.com"]
[Date "2023.10.03"]
[Round "10"]
[White "MMAHDI2013"]
[Black "CristianS27"]
[Result "1-0"]
[WhiteElo "2434"]
[BlackElo "2493"]
[TimeControl "180+1"]
[EndTime "9:57:04 PDT"]
[Termination "MMAHDI2013 won by resignation"]

1. c4 {[%clk 0:02:58.8]} 1... Nf6 {[%clk 0:02:59.8]} 2. Nf3 {[%clk 0:02:57.7]}
2... g6 {[%clk 0:02:59.7]} 3. b3 {[%clk 0:02:55.8]} 3... Bg7 {[%clk 0:03:00]} 4.
Bb2 {[%clk 0:02:53.2]} 4... O-O {[%clk 0:03:00.9]} 5. g3 {[%clk 0:02:52.9]} 5...
d6 {[%clk 0:03:00.3]} 6. d4 {[%clk 0:02:52.4]} 6... Nc6 {[%clk 0:02:58.2]} 7.
Bg2 {[%clk 0:02:50.2]} 7... a6 {[%clk 0:02:53.3]} 8. O-O {[%clk 0:02:46.9]} 8...
Rb8 {[%clk 0:02:53.5]} 9. d5 {[%clk 0:02:44.5]} 9... Na5 {[%clk 0:02:52.8]} 10.
Bc3 {[%clk 0:02:25.8]} 10... c5 {[%clk 0:02:51.3]} 11. Qe1 {[%clk 0:02:25.1]}
11... b6 {[%clk 0:02:51.4]} 12. e4 {[%clk 0:02:22.9]} 12... e6 {[%clk
0:02:43.7]} 13. e5 {[%clk 0:02:03.7]} 13... dxe5 {[%clk 0:02:32.4]} 14. Nxe5
{[%clk 0:02:03]} 14... Bb7 {[%clk 0:02:17.9]} 15. dxe6 {[%clk 0:01:55.1]} 15...
fxe6 {[%clk 0:02:14.8]} 16. Bxb7 {[%clk 0:01:49.2]} 16... Rxb7 {[%clk
0:02:13.6]} 17. Nd2 {[%clk 0:01:45.2]} 17... Qe7 {[%clk 0:02:02.1]} 18. Ne4
{[%clk 0:01:37]} 18... Nxe4 {[%clk 0:01:54.4]} 19. Qxe4 {[%clk 0:01:37.9]} 19...
Rc7 {[%clk 0:01:55.2]} 20. Rad1 {[%clk 0:01:34.1]} 20... Qg5 {[%clk 0:01:43]}
21. f4 {[%clk 0:01:18.9]} 21... Qf5 {[%clk 0:01:42.8]} 22. Qxf5 {[%clk
0:01:14.4]} 22... exf5 {[%clk 0:01:38.8]} 23. Bxa5 {[%clk 0:01:07.5]} 23... bxa5
{[%clk 0:01:39.7]} 24. Rd5 {[%clk 0:01:07.5]} 24... a4 {[%clk 0:01:35.3]} 25.
bxa4 {[%clk 0:00:56.4]} 25... Rb8 {[%clk 0:01:35.1]} 26. Rfd1 {[%clk 0:00:56.6]}
26... h5 {[%clk 0:01:17.8]} 27. Rd8+ {[%clk 0:00:52.9]} 27... Rxd8 {[%clk
0:01:16.4]} 28. Rxd8+ {[%clk 0:00:53.8]} 28... Kh7 {[%clk 0:01:17.3]} 29. Rd6
{[%clk 0:00:52.9]} 29... g5 {[%clk 0:01:07.3]} 30. Rxa6 {[%clk 0:00:49.9]} 30...
gxf4 {[%clk 0:01:07.5]} 31. gxf4 {[%clk 0:00:50.8]} 31... Rb7 {[%clk 0:01:08.4]}
32. Ra8 {[%clk 0:00:48.1]} 32... Rb2 {[%clk 0:01:04.7]} 33. a5 {[%clk
0:00:47.5]} 33... Rxa2 {[%clk 0:01:05.2]} 34. a6 {[%clk 0:00:47.8]} 34... h4
{[%clk 0:00:56.5]} 35. a7 {[%clk 0:00:44.2]} 35... h3 {[%clk 0:00:56.9]} 36. Nc6
{[%clk 0:00:40.5]} 36... Bd4+ {[%clk 0:00:52]} 37. Kf1 {[%clk 0:00:33.5]} 37...
Rxh2 {[%clk 0:00:44.9]} 38. Rh8+ {[%clk 0:00:24.8]} 38... Bxh8 {[%clk
0:00:40.5]} 39. a8=Q {[%clk 0:00:24.4]} 39... Rg2 {[%clk 0:00:38.3]} 40. Qb7+
{[%clk 0:00:20.5]} 40... Rg7 {[%clk 0:00:36.3]} 41. Qb3 {[%clk 0:00:18.4]} 41...
Rg6 {[%clk 0:00:28.5]} 42. Qxh3+ {[%clk 0:00:18.4]} 42... Kg8 {[%clk 0:00:29.3]}
43. Qf3 {[%clk 0:00:18.9]} 43... Kf7 {[%clk 0:00:28]} 44. Ne5+ {[%clk
0:00:18.8]} 44... Bxe5 {[%clk 0:00:28.3]} 45. fxe5 {[%clk 0:00:19.7]} 45... Ke6
{[%clk 0:00:29.2]} 46. Qd5+ {[%clk 0:00:19.7]} 46... Ke7 {[%clk 0:00:29.8]} 47.
Qxc5+ {[%clk 0:00:20.2]} 47... Ke6 {[%clk 0:00:29.8]} 48. Qd5+ {[%clk
0:00:20.7]} 48... Ke7 {[%clk 0:00:30.1]} 49. c5 {[%clk 0:00:21.2]} 49... f4
{[%clk 0:00:29.6]} 50. Kf2 {[%clk 0:00:21.2]} 50... Rh6 {[%clk 0:00:28]} 51. Kf3
{[%clk 0:00:20.8]} 51... Rd6 {[%clk 0:00:27.3]} 52. Qxd6+ {[%clk 0:00:20.6]} 1-0

[Event "Early-Titled-Tuesday-Blitz-October-03-2023"]
[Site "Chess.com"]
[Date "2023.10.03"]
[Round "10"]
[White "Good_Knight_Kiss"]
[Black "Lady_Nika"]
[Result "0-1"]
[WhiteElo "2414"]
[BlackElo "2530"]
[TimeControl "180+1"]
[EndTime "9:57:05 PDT"]
[Termination "Lady_Nika won on time"]

1. e4 {[%clk 0:03:00.9]} 1... e6 {[%clk 0:02:59.9]} 2. d4 {[%clk 0:03:00.4]}
2... d5 {[%clk 0:03:00.2]} 3. Nc3 {[%clk 0:03:00.1]} 3... Nf6 {[%clk 0:03:00.4]}
4. Bg5 {[%clk 0:02:59.2]} 4... Be7 {[%clk 0:03:00.2]} 5. e5 {[%clk 0:02:52.5]}
5... Nfd7 {[%clk 0:02:59.9]} 6. Bxe7 {[%clk 0:02:48]} 6... Qxe7 {[%clk
0:03:00.6]} 7. f4 {[%clk 0:02:48.3]} 7... a6 {[%clk 0:02:59.5]} 8. Nf3 {[%clk
0:02:45.2]} 8... c5 {[%clk 0:02:59.4]} 9. Qd2 {[%clk 0:02:34.5]} 9... Nc6 {[%clk
0:02:59.5]} 10. dxc5 {[%clk 0:02:34.7]} 10... Nxc5 {[%clk 0:02:57.4]} 11. Bd3
{[%clk 0:02:34.7]} 11... b5 {[%clk 0:02:57.1]} 12. O-O {[%clk 0:02:34.6]} 12...
g6 {[%clk 0:02:55.6]} 13. Qe3 {[%clk 0:02:26.8]} 13... Bb7 {[%clk 0:02:52.6]}
14. Ne2 {[%clk 0:02:26.1]} 14... Nb4 {[%clk 0:02:48.8]} 15. Ned4 {[%clk
0:02:22.3]} 15... Rc8 {[%clk 0:02:19.3]} 16. Rf2 {[%clk 0:02:13.9]} 16... Ne4
{[%clk 0:02:15.5]} 17. Bxe4 {[%clk 0:02:06.1]} 17... dxe4 {[%clk 0:02:15.6]} 18.
Ng5 {[%clk 0:02:06.1]} 18... Nd5 {[%clk 0:01:46.1]} 19. Qxe4 {[%clk 0:01:56]}
19... Rc4 {[%clk 0:01:35.6]} 20. Qd3 {[%clk 0:01:28.9]} 20... Nxf4 {[%clk
0:01:31.9]} 21. Rxf4 {[%clk 0:01:13.9]} 21... Qxg5 {[%clk 0:01:31.2]} 22. Qg3
{[%clk 0:01:11.4]} 22... Qxe5 {[%clk 0:01:17.8]} 23. c3 {[%clk 0:01:02.3]} 23...
O-O {[%clk 0:01:10.5]} 24. Re1 {[%clk 0:00:54.5]} 24... Qc5 {[%clk 0:01:09]} 25.
Kh1 {[%clk 0:00:45.8]} 25... b4 {[%clk 0:01:06]} 26. Nb3 {[%clk 0:00:40.4]}
26... Qc7 {[%clk 0:01:01.1]} 27. Rxc4 {[%clk 0:00:32.5]} 27... Qxc4 {[%clk
0:01:00.3]} 28. Na5 {[%clk 0:00:20.1]} 28... Qb5 {[%clk 0:01:00]} 29. Nxb7
{[%clk 0:00:19.1]} 29... Qxb7 {[%clk 0:00:59.8]} 30. c4 {[%clk 0:00:14.3]} 30...
Rc8 {[%clk 0:00:59.2]} 31. b3 {[%clk 0:00:13.3]} 31... Rd8 {[%clk 0:00:59.5]}
32. h4 {[%clk 0:00:12.2]} 32... Qe7 {[%clk 0:00:49.9]} 33. Re2 {[%clk 0:00:08]}
33... Rd4 {[%clk 0:00:47.1]} 34. Qb8+ {[%clk 0:00:07.8]} 34... Kg7 {[%clk
0:00:42.2]} 35. Qe5+ {[%clk 0:00:07.6]} 35... Qf6 {[%clk 0:00:42.5]} 36. g3
{[%clk 0:00:07.5]} 36... Rd1+ {[%clk 0:00:36.8]} 37. Kg2 {[%clk 0:00:07]} 37...
Qxe5 {[%clk 0:00:35.8]} 38. Rxe5 {[%clk 0:00:07.9]} 38... Rd2+ {[%clk
0:00:36.3]} 39. Kf3 {[%clk 0:00:08.3]} 39... Rxa2 {[%clk 0:00:37]} 40. Ke3
{[%clk 0:00:07.3]} 40... Ra3 {[%clk 0:00:35.6]} 41. Kd4 {[%clk 0:00:05.8]} 41...
Rxb3 {[%clk 0:00:36]} 42. Ra5 {[%clk 0:00:02.9]} 42... Rxg3 {[%clk 0:00:34.5]}
43. c5 {[%clk 0:00:02.5]} 43... Rc3 {[%clk 0:00:27]} 0-1

[Event "Early-Titled-Tuesday-Blitz-October-03-2023"]
[Site "Chess.com"]
[Date "2023.10.03"]
[Round "10"]
[White "vladislavkovalev"]
[Black "Krakozia"]
[Result "1-0"]
[WhiteElo "2880"]
[BlackElo "3000"]
[TimeControl "180+1"]
[EndTime "9:57:09 PDT"]
[Termination "vladislavkovalev won on time"]

1. e4 {[%clk 0:03:00.9]} 1... c5 {[%clk 0:03:00]} 2. Nf3 {[%clk 0:03:00.7]} 2...
e6 {[%clk 0:02:59.9]} 3. c3 {[%clk 0:03:00.9]} 3... Nf6 {[%clk 0:02:58]} 4. e5
{[%clk 0:03:01]} 4... Nd5 {[%clk 0:02:58.3]} 5. d4 {[%clk 0:03:01.7]} 5... cxd4
{[%clk 0:02:58.4]} 6. cxd4 {[%clk 0:03:02.6]} 6... d6 {[%clk 0:02:58.7]} 7. Bc4
{[%clk 0:03:03.1]} 7... Be7 {[%clk 0:02:58.9]} 8. O-O {[%clk 0:03:03.1]} 8...
O-O {[%clk 0:02:59.6]} 9. Qe2 {[%clk 0:03:03.5]} 9... Nc6 {[%clk 0:02:59.3]} 10.
Rd1 {[%clk 0:02:57.6]} 10... b6 {[%clk 0:02:59.1]} 11. Bxd5 {[%clk 0:02:47.9]}
11... exd5 {[%clk 0:02:58.2]} 12. Nc3 {[%clk 0:02:48.7]} 12... Be6 {[%clk
0:02:56.2]} 13. Qb5 {[%clk 0:02:37.2]} 13... Rc8 {[%clk 0:02:39.7]} 14. Nxd5
{[%clk 0:02:30.7]} 14... Bxd5 {[%clk 0:02:28.1]} 15. Qxd5 {[%clk 0:02:31.6]}
15... dxe5 {[%clk 0:02:25.5]} 16. dxe5 {[%clk 0:02:27.1]} 16... Qxd5 {[%clk
0:02:22.8]} 17. Rxd5 {[%clk 0:02:28]} 17... Nb4 {[%clk 0:02:22.6]} 18. Rd1
{[%clk 0:02:20.2]} 18... Rc2 {[%clk 0:02:05.1]} 19. a3 {[%clk 0:01:55.9]} 19...
Nc6 {[%clk 0:02:04.6]} 20. b4 {[%clk 0:01:47.1]} 20... h6 {[%clk 0:01:48.1]} 21.
Be3 {[%clk 0:01:43.3]} 21... Rc8 {[%clk 0:01:34.1]} 22. Rac1 {[%clk 0:01:11.3]}
22... Nb8 {[%clk 0:00:45.3]} 23. Rxc2 {[%clk 0:01:08.5]} 23... Rxc2 {[%clk
0:00:45.7]} 24. Nd4 {[%clk 0:01:00.4]} 24... Rc4 {[%clk 0:00:38.1]} 25. Nb5
{[%clk 0:00:27]} 25... a6 {[%clk 0:00:31.7]} 26. Nd6 {[%clk 0:00:24.1]} 26...
Bxd6 {[%clk 0:00:27.9]} 27. Rxd6 {[%clk 0:00:22.1]} 27... Nc6 {[%clk 0:00:28.2]}
28. f4 {[%clk 0:00:19.3]} 28... b5 {[%clk 0:00:27.7]} 29. Bc5 {[%clk 0:00:19.8]}
29... Na5 {[%clk 0:00:19.1]} 30. Rxa6 {[%clk 0:00:12.4]} 30... Rc1+ {[%clk
0:00:17.2]} 31. Kf2 {[%clk 0:00:12]} 31... Nc4 {[%clk 0:00:17]} 32. a4 {[%clk
0:00:06.3]} 32... Rc2+ {[%clk 0:00:16.2]} 33. Kf3 {[%clk 0:00:06.5]} 33... Rc3+
{[%clk 0:00:13.7]} 34. Ke4 {[%clk 0:00:05]} 34... bxa4 {[%clk 0:00:12.1]} 35.
Rxa4 {[%clk 0:00:05.9]} 35... Nd2+ {[%clk 0:00:07.8]} 36. Kd4 {[%clk 0:00:05.9]}
36... Rb3 {[%clk 0:00:07.7]} 37. Ra8+ {[%clk 0:00:05.6]} 37... Kh7 {[%clk
0:00:06.8]} 38. f5 {[%clk 0:00:06.5]} 38... Nf1 {[%clk 0:00:05.4]} 39. e6 {[%clk
0:00:06.9]} 39... fxe6 {[%clk 0:00:04]} 40. fxe6 {[%clk 0:00:07.8]} 40... Ne3
{[%clk 0:00:03.8]} 41. e7 {[%clk 0:00:07.5]} 41... Nf5+ {[%clk 0:00:03.7]} 42.
Kc4 {[%clk 0:00:08.2]} 1-0

[Event "Early-Titled-Tuesday-Blitz-October-03-2023"]
[Site "Chess.com"]
[Date "2023.10.03"]
[Round "10"]
[White "Frolyanov_D"]
[Black "Triumphmate"]
[Result "0-1"]
[WhiteElo "2660"]
[BlackElo "2511"]
[TimeControl "180+1"]
[EndTime "9:57:10 PDT"]
[Termination "Triumphmate won on time"]

1. d4 {[%clk 0:03:00.9]} 1... d5 {[%clk 0:02:59]} 2. c4 {[%clk 0:03:00.8]} 2...
e6 {[%clk 0:02:41.8]} 3. Nf3 {[%clk 0:03:00.1]} 3... Nf6 {[%clk 0:02:41.4]} 4.
g3 {[%clk 0:02:59.9]} 4... Be7 {[%clk 0:02:41.1]} 5. Bg2 {[%clk 0:02:59.8]} 5...
O-O {[%clk 0:02:42]} 6. O-O {[%clk 0:03:00.4]} 6... dxc4 {[%clk 0:02:41.8]} 7.
Qc2 {[%clk 0:03:00.5]} 7... c5 {[%clk 0:02:41.8]} 8. dxc5 {[%clk 0:02:58.4]}
8... Nc6 {[%clk 0:02:41.8]} 9. Qxc4 {[%clk 0:02:55.1]} 9... e5 {[%clk
0:02:41.8]} 10. Bg5 {[%clk 0:02:36.4]} 10... Be6 {[%clk 0:02:39.4]} 11. Qc1
{[%clk 0:02:35.1]} 11... Rc8 {[%clk 0:02:34.7]} 12. Nc3 {[%clk 0:02:34.6]} 12...
Bxc5 {[%clk 0:02:31.8]} 13. Bxf6 {[%clk 0:02:31.8]} 13... gxf6 {[%clk
0:02:25.1]} 14. Qh6 {[%clk 0:02:27.7]} 14... Kh8 {[%clk 0:02:19.2]} 15. Nh4
{[%clk 0:02:15.9]} 15... Rg8 {[%clk 0:01:57.1]} 16. Rad1 {[%clk 0:02:13.4]}
16... Bf8 {[%clk 0:01:51.3]} 17. Qh5 {[%clk 0:02:03.2]} 17... Qe7 {[%clk
0:01:48.9]} 18. Be4 {[%clk 0:02:01.1]} 18... Rg7 {[%clk 0:01:28.9]} 19. Nf5
{[%clk 0:02:00]} 19... Bxf5 {[%clk 0:01:28.9]} 20. Qxf5 {[%clk 0:02:00.8]} 20...
Qe6 {[%clk 0:01:22]} 21. e3 {[%clk 0:01:55.4]} 21... Ne7 {[%clk 0:00:57.9]} 22.
Qf3 {[%clk 0:01:27.2]} 22... b6 {[%clk 0:00:57]} 23. Nd5 {[%clk 0:01:25.2]}
23... f5 {[%clk 0:00:53.9]} 24. Nf4 {[%clk 0:00:32.3]} 24... exf4 {[%clk
0:00:42.8]} 25. Bb7 {[%clk 0:00:32]} 25... Rb8 {[%clk 0:00:35.6]} 26. exf4
{[%clk 0:00:32.3]} 26... Ng6 {[%clk 0:00:25.7]} 27. Rfe1 {[%clk 0:00:32.5]}
27... Qxa2 {[%clk 0:00:24.9]} 28. Rd7 {[%clk 0:00:30.1]} 28... Qxb2 {[%clk
0:00:22.3]} 29. Bd5 {[%clk 0:00:22.7]} 29... Qf6 {[%clk 0:00:21]} 30. Rxa7
{[%clk 0:00:20.3]} 30... h6 {[%clk 0:00:18.6]} 31. Rc1 {[%clk 0:00:18.4]} 31...
Bc5 {[%clk 0:00:18.6]} 32. Rc7 {[%clk 0:00:09.9]} 32... Qd6 {[%clk 0:00:16.8]}
33. Rc6 {[%clk 0:00:09.6]} 33... Qxf4 {[%clk 0:00:12.5]} 34. Qd1 {[%clk
0:00:02.7]} 34... Qxf2+ {[%clk 0:00:09.6]} 35. Kh1 {[%clk 0:00:03.4]} 35... Rd8
{[%clk 0:00:09]} 36. Rc7 {[%clk 0:00:01]} 36... Nf4 {[%clk 0:00:08.1]} 0-1